[Event "Early-Titled-Tuesday-Blitz-September-12-2023"]
[Site "Chess.com"]
[Date "2023.09.12"]
[Round "2"]
[White "BigAl"]
[Black "Leonid_Starozhilov"]
[Result "0-1"]
[WhiteElo "2543"]
[BlackElo "2785"]
[TimeControl "180+1"]
[EndTime "8:18:50 PDT"]
[Termination "Leonid_Starozhilov won by resignation"]

1. Nf3 {[%clk 0:03:00.9]} 1... Nf6 {[%clk 0:03:00.2]} 2. g3 {[%clk 0:03:01.3]}
2... g6 {[%clk 0:03:00.7]} 3. Bg2 {[%clk 0:03:02]} 3... Bg7 {[%clk 0:03:01.5]}
4. O-O {[%clk 0:03:02.6]} 4... O-O {[%clk 0:03:02.4]} 5. d3 {[%clk 0:03:03.2]}
5... d6 {[%clk 0:03:03.3]} 6. e4 {[%clk 0:03:02.9]} 6... c6 {[%clk 0:03:03.6]}
7. Nc3 {[%clk 0:03:00.7]} 7... Bg4 {[%clk 0:03:01.3]} 8. h3 {[%clk 0:03:00]}
8... Bxf3 {[%clk 0:03:01.7]} 9. Qxf3 {[%clk 0:03:00.2]} 9... Nbd7 {[%clk
0:02:59.2]} 10. Qd1 {[%clk 0:02:57.2]} 10... a5 {[%clk 0:02:49.6]} 11. a4 {[%clk
0:02:56.6]} 11... e5 {[%clk 0:02:47]} 12. Kh2 {[%clk 0:02:53]} 12... Nc5 {[%clk
0:02:46.5]} 13. f4 {[%clk 0:02:43.3]} 13... exf4 {[%clk 0:02:46.5]} 14. gxf4
{[%clk 0:02:43.4]} 14... Nh5 {[%clk 0:02:46.4]} 15. d4 {[%clk 0:02:29.7]} 15...
Ne6 {[%clk 0:02:31.6]} 16. Be3 {[%clk 0:02:19.6]} 16... Qh4 {[%clk 0:02:31.2]}
17. Ne2 {[%clk 0:02:12.4]} 17... Rae8 {[%clk 0:02:13.6]} 18. f5 {[%clk
0:01:53.6]} 18... Nc7 {[%clk 0:01:49.3]} 19. Qd2 {[%clk 0:01:32.7]} 19... Qd8
{[%clk 0:01:47]} 20. c3 {[%clk 0:01:25.1]} 20... c5 {[%clk 0:01:38.1]} 21. Bg5
{[%clk 0:01:16.5]} 21... Bf6 {[%clk 0:01:33.3]} 22. Bh6 {[%clk 0:01:11.7]} 22...
Bg7 {[%clk 0:01:33.7]} 23. Bxg7 {[%clk 0:01:05.6]} 23... Kxg7 {[%clk 0:01:30.6]}
24. Rae1 {[%clk 0:00:57.9]} 24... Qh4 {[%clk 0:01:24.3]} 25. dxc5 {[%clk
0:00:36]} 25... dxc5 {[%clk 0:01:22.5]} 26. Qd6 {[%clk 0:00:30.7]} 26... Qe7
{[%clk 0:00:54]} 27. Qxe7 {[%clk 0:00:20]} 27... Rxe7 {[%clk 0:00:53.9]} 28. Bf3
{[%clk 0:00:17.8]} 28... Nf6 {[%clk 0:00:50.8]} 29. Ng3 {[%clk 0:00:17.9]} 29...
Rfe8 {[%clk 0:00:50.6]} 30. Rg1 {[%clk 0:00:18.1]} 30... Re5 {[%clk 0:00:37.3]}
31. Rd1 {[%clk 0:00:17.9]} 31... Kf8 {[%clk 0:00:30]} 32. Rd6 {[%clk 0:00:16.6]}
32... Ng8 {[%clk 0:00:17]} 33. Rf1 {[%clk 0:00:14.6]} 33... R8e7 {[%clk
0:00:15.5]} 34. Rd8+ {[%clk 0:00:12.9]} 34... Re8 {[%clk 0:00:15.9]} 35. Rd6
{[%clk 0:00:12.4]} 35... Ke7 {[%clk 0:00:12.1]} 36. Rb6 {[%clk 0:00:12.6]} 36...
Rb8 {[%clk 0:00:12.8]} 37. Rd1 {[%clk 0:00:10.3]} 37... Nf6 {[%clk 0:00:11.9]}
38. Rdd6 {[%clk 0:00:08.7]} 38... Nd7 {[%clk 0:00:12]} 39. f6+ {[%clk
0:00:06.3]} 39... Ke8 {[%clk 0:00:09.5]} 40. Bg4 {[%clk 0:00:05.5]} 40... Nxb6
{[%clk 0:00:09.2]} 41. Rxb6 {[%clk 0:00:06.4]} 41... Ne6 {[%clk 0:00:08]} 42.
Kg2 {[%clk 0:00:06.3]} 42... h5 {[%clk 0:00:08.1]} 43. Bd1 {[%clk 0:00:05.7]}
43... Kd7 {[%clk 0:00:08.2]} 44. Rb5 {[%clk 0:00:04.2]} 44... b6 {[%clk
0:00:08.4]} 45. Kf3 {[%clk 0:00:04.4]} 45... Kc7 {[%clk 0:00:07.8]} 46. Bb3
{[%clk 0:00:04.5]} 46... Rd8 {[%clk 0:00:08.1]} 47. Bd5 {[%clk 0:00:04.7]} 47...
Rdxd5 {[%clk 0:00:07.7]} 48. exd5 {[%clk 0:00:05.1]} 48... Rxd5 {[%clk
0:00:08.6]} 49. Ne4 {[%clk 0:00:05.6]} 49... Ng5+ {[%clk 0:00:09]} 50. Nxg5
{[%clk 0:00:05.3]} 50... Rxg5 {[%clk 0:00:09.9]} 51. b4 {[%clk 0:00:05.2]} 51...
Rf5+ {[%clk 0:00:09.2]} 52. Ke4 {[%clk 0:00:05]} 52... cxb4 {[%clk 0:00:09.5]}
53. Rxf5 {[%clk 0:00:02]} 53... gxf5+ {[%clk 0:00:09.5]} 54. Kd3 {[%clk
0:00:02.9]} 54... b3 {[%clk 0:00:09.2]} 55. c4 {[%clk 0:00:03.1]} 55... f4
{[%clk 0:00:09.2]} 0-1

[Event "Early-Titled-Tuesday-Blitz-September-12-2023"]
[Site "Chess.com"]
[Date "2023.09.12"]
[Round "2"]
[White "carokannlover213"]
[Black "leschebaza"]
[Result "1-0"]
[WhiteElo "2725"]
[BlackElo "2380"]
[TimeControl "180+1"]
[EndTime "8:18:50 PDT"]
[Termination "carokannlover213 won by checkmate"]

1. g3 {[%clk 0:03:00.9]} 1... Nf6 {[%clk 0:02:59.9]} 2. Bg2 {[%clk 0:02:52.6]}
2... g6 {[%clk 0:03:00.1]} 3. e4 {[%clk 0:02:51.3]} 3... d6 {[%clk 0:03:00.1]}
4. d4 {[%clk 0:02:50.1]} 4... Bg7 {[%clk 0:03:00.4]} 5. Ne2 {[%clk 0:02:50.6]}
5... c5 {[%clk 0:02:59.1]} 6. O-O {[%clk 0:02:50.4]} 6... cxd4 {[%clk
0:02:58.2]} 7. Nxd4 {[%clk 0:02:51.3]} 7... O-O {[%clk 0:02:58.9]} 8. Nc3 {[%clk
0:02:51.3]} 8... Nc6 {[%clk 0:02:57.2]} 9. Nde2 {[%clk 0:02:49.5]} 9... a6
{[%clk 0:02:53.9]} 10. Be3 {[%clk 0:02:44]} 10... Rb8 {[%clk 0:02:52.8]} 11. a4
{[%clk 0:02:43.2]} 11... Bd7 {[%clk 0:02:49.1]} 12. Rc1 {[%clk 0:02:41.7]} 12...
Ne5 {[%clk 0:02:49.1]} 13. b3 {[%clk 0:02:33.6]} 13... b5 {[%clk 0:02:47.1]} 14.
axb5 {[%clk 0:02:32.4]} 14... axb5 {[%clk 0:02:48]} 15. Nd5 {[%clk 0:02:32.1]}
15... Bc6 {[%clk 0:02:29.3]} 16. Nd4 {[%clk 0:02:24.9]} 16... Bxd5 {[%clk
0:02:17]} 17. exd5 {[%clk 0:02:25.8]} 17... h5 {[%clk 0:02:17.1]} 18. h3 {[%clk
0:02:24.8]} 18... Qd7 {[%clk 0:02:14.7]} 19. f4 {[%clk 0:02:22.3]} 19... Neg4
{[%clk 0:02:12.2]} 20. hxg4 {[%clk 0:02:22.4]} 20... Nxg4 {[%clk 0:02:13.1]} 21.
Bh3 {[%clk 0:02:07.9]} 21... Rbc8 {[%clk 0:01:51.1]} 22. Bxg4 {[%clk 0:02:05.7]}
22... hxg4 {[%clk 0:01:52]} 23. Nc6 {[%clk 0:02:04.8]} 23... Bf6 {[%clk
0:01:44]} 24. c4 {[%clk 0:02:03.4]} 24... bxc4 {[%clk 0:01:43.4]} 25. Rxc4
{[%clk 0:02:01.1]} 25... Kg7 {[%clk 0:01:43.6]} 26. Bd4 {[%clk 0:01:37.2]} 26...
Rh8 {[%clk 0:01:42.7]} 27. Bxf6+ {[%clk 0:01:36.7]} 27... exf6 {[%clk
0:01:43.6]} 28. f5 {[%clk 0:01:33.9]} 28... Rh3 {[%clk 0:01:33.2]} 29. Qxg4
{[%clk 0:01:14]} 29... Rch8 {[%clk 0:01:32.6]} 30. fxg6 {[%clk 0:00:51.5]} 30...
Rh1+ {[%clk 0:01:31.6]} 31. Kf2 {[%clk 0:00:51.8]} 31... R8h2+ {[%clk
0:01:24.8]} 32. Ke1 {[%clk 0:00:51.4]} 32... f5 {[%clk 0:01:16.6]} 33. Qd4+
{[%clk 0:00:46.1]} 33... f6 {[%clk 0:01:12.6]} 34. Qa7 {[%clk 0:00:36.3]} 34...
Qxa7 {[%clk 0:01:02.7]} 35. Nxa7 {[%clk 0:00:37.2]} 35... Rxf1+ {[%clk
0:00:57.2]} 36. Kxf1 {[%clk 0:00:38.1]} 36... Rb2 {[%clk 0:00:56.9]} 37. Nb5
{[%clk 0:00:31.3]} 37... Rxb3 {[%clk 0:00:56.2]} 38. Nxd6 {[%clk 0:00:31]} 38...
Kxg6 {[%clk 0:00:55.8]} 39. Rd4 {[%clk 0:00:23.4]} 39... Rxg3 {[%clk 0:00:54]}
40. Nc4 {[%clk 0:00:23.2]} 40... Kf7 {[%clk 0:00:53.2]} 41. d6 {[%clk
0:00:22.7]} 41... Ke8 {[%clk 0:00:53]} 42. d7+ {[%clk 0:00:16]} 42... Kd8 {[%clk
0:00:53.5]} 43. Nd6 {[%clk 0:00:16.6]} 43... Rf3+ {[%clk 0:00:19.9]} 44. Ke2
{[%clk 0:00:15.7]} 44... Ra3 {[%clk 0:00:11.8]} 45. Nf7+ {[%clk 0:00:11.5]}
45... Ke7 {[%clk 0:00:12.1]} 46. d8=Q+ {[%clk 0:00:12.4]} 46... Kxf7 {[%clk
0:00:12.9]} 47. Qd7+ {[%clk 0:00:12.2]} 47... Kg6 {[%clk 0:00:12.1]} 48. Rd3
{[%clk 0:00:12.8]} 48... Ra7 {[%clk 0:00:11.3]} 49. Qe8+ {[%clk 0:00:11.1]}
49... Kg5 {[%clk 0:00:07.7]} 50. Qe3+ {[%clk 0:00:11.5]} 50... f4 {[%clk
0:00:07.7]} 51. Qc5+ {[%clk 0:00:11.3]} 51... f5 {[%clk 0:00:07.3]} 52. Qxa7
{[%clk 0:00:12.2]} 52... f3+ {[%clk 0:00:07.2]} 53. Kf1 {[%clk 0:00:11.7]} 53...
f4 {[%clk 0:00:08.1]} 54. Qg7+ {[%clk 0:00:10.9]} 54... Kf5 {[%clk 0:00:08.2]}
55. Rd5+ {[%clk 0:00:11]} 55... Ke4 {[%clk 0:00:08.6]} 56. Qd4# {[%clk
0:00:10.2]} 1-0

[Event "Early-Titled-Tuesday-Blitz-September-12-2023"]
[Site "Chess.com"]
[Date "2023.09.12"]
[Round "2"]
[White "OchsenfroschGambit"]
[Black "LangesNasenhaar"]
[Result "0-1"]
[WhiteElo "2109"]
[BlackElo "2473"]
[TimeControl "180+1"]
[EndTime "8:18:51 PDT"]
[Termination "LangesNasenhaar won on time"]

1. d4 {[%clk 0:03:00.9]} 1... g6 {[%clk 0:02:59.3]} 2. c4 {[%clk 0:02:59.1]}
2... Bg7 {[%clk 0:02:59.7]} 3. e4 {[%clk 0:02:59.7]} 3... d6 {[%clk 0:02:59.2]}
4. Nc3 {[%clk 0:03:00]} 4... e5 {[%clk 0:02:59.7]} 5. d5 {[%clk 0:03:00.2]} 5...
f5 {[%clk 0:02:59.1]} 6. exf5 {[%clk 0:02:58]} 6... gxf5 {[%clk 0:02:58.6]} 7.
Qh5+ {[%clk 0:02:58]} 7... Kf8 {[%clk 0:02:58.6]} 8. Qd1 {[%clk 0:02:58]} 8...
Nf6 {[%clk 0:02:58.2]} 9. g3 {[%clk 0:02:54.6]} 9... Nbd7 {[%clk 0:02:54.8]} 10.
Bg2 {[%clk 0:02:54.6]} 10... Nc5 {[%clk 0:02:54.6]} 11. Nf3 {[%clk 0:02:44.3]}
11... a5 {[%clk 0:02:53.6]} 12. O-O {[%clk 0:02:43.8]} 12... Bd7 {[%clk
0:02:47]} 13. Nh4 {[%clk 0:02:40.2]} 13... Kf7 {[%clk 0:02:14.4]} 14. Qc2 {[%clk
0:01:56]} 14... Qc8 {[%clk 0:01:51.5]} 15. Bh3 {[%clk 0:01:54.1]} 15... f4
{[%clk 0:01:50.7]} 16. Bxd7 {[%clk 0:01:50.6]} 16... Qxd7 {[%clk 0:01:49]} 17.
Qf5 {[%clk 0:01:25.6]} 17... Qxf5 {[%clk 0:01:24]} 18. Nxf5 {[%clk 0:01:26.5]}
18... Rhf8 {[%clk 0:01:20.7]} 19. gxf4 {[%clk 0:01:18.2]} 19... Nfd7 {[%clk
0:01:09.2]} 20. Kh1 {[%clk 0:01:08.6]} 20... exf4 {[%clk 0:01:07.3]} 21. Bxf4
{[%clk 0:01:03]} 21... Bxc3 {[%clk 0:00:51.7]} 22. bxc3 {[%clk 0:01:03.9]} 22...
Rae8 {[%clk 0:00:31.5]} 23. Rae1 {[%clk 0:01:00]} 23... Rxe1 {[%clk 0:00:29.2]}
24. Rxe1 {[%clk 0:01:00.9]} 24... Kg6 {[%clk 0:00:25.8]} 25. Nh4+ {[%clk
0:00:55]} 25... Kh5 {[%clk 0:00:23.1]} 26. Bg3 {[%clk 0:00:54.7]} 26... Ne5
{[%clk 0:00:22.8]} 27. Kg2 {[%clk 0:00:28.8]} 27... Rf7 {[%clk 0:00:21.2]} 28.
Bxe5 {[%clk 0:00:25.2]} 28... Kxh4 {[%clk 0:00:17.7]} 29. Bd4 {[%clk 0:00:22]}
29... Nd3 {[%clk 0:00:17.7]} 30. Re4+ {[%clk 0:00:20.5]} 30... Kg5 {[%clk
0:00:16.2]} 31. Re8 {[%clk 0:00:20.1]} 31... Nf4+ {[%clk 0:00:15.4]} 32. Kf1
{[%clk 0:00:19.3]} 32... Kf5 {[%clk 0:00:11.9]} 33. Rg8 {[%clk 0:00:17]} 33...
Ng6 {[%clk 0:00:11.4]} 34. Rc8 {[%clk 0:00:16.5]} 34... b6 {[%clk 0:00:11.3]}
35. a4 {[%clk 0:00:15.5]} 35... Ke4 {[%clk 0:00:09.9]} 36. Ke2 {[%clk
0:00:14.9]} 36... Nf4+ {[%clk 0:00:09.2]} 37. Kd2 {[%clk 0:00:15.4]} 37... Kf3
{[%clk 0:00:09.5]} 38. Rg8 {[%clk 0:00:13.8]} 38... Ng6 {[%clk 0:00:09.4]} 39.
Re8 {[%clk 0:00:13.1]} 39... Re7 {[%clk 0:00:08.8]} 40. Rc8 {[%clk 0:00:09.4]}
40... Re2+ {[%clk 0:00:07.8]} 41. Kd1 {[%clk 0:00:08.5]} 41... Re7 {[%clk
0:00:08.7]} 42. Kd2 {[%clk 0:00:08.7]} 42... Rf7 {[%clk 0:00:08.8]} 43. Kd3
{[%clk 0:00:06.8]} 43... Nh4 {[%clk 0:00:08.9]} 44. Rg8 {[%clk 0:00:05.4]} 44...
Nf5 {[%clk 0:00:08.9]} 45. Rh8 {[%clk 0:00:05]} 45... Nxd4 {[%clk 0:00:06.6]}
46. cxd4 {[%clk 0:00:05.9]} 46... Kxf2 {[%clk 0:00:06.9]} 47. c5 {[%clk
0:00:03.5]} 47... bxc5 {[%clk 0:00:06.7]} 48. dxc5 {[%clk 0:00:04.4]} 48... dxc5
{[%clk 0:00:07.1]} 49. Kc4 {[%clk 0:00:05.1]} 49... Rf4+ {[%clk 0:00:06.6]} 50.
Kxc5 {[%clk 0:00:05.4]} 50... Rxa4 {[%clk 0:00:06.3]} 51. Rxh7 {[%clk
0:00:06.1]} 51... Kg2 {[%clk 0:00:05.1]} 52. Rxc7 {[%clk 0:00:05.2]} 52... Ra1
{[%clk 0:00:06]} 53. Ra7 {[%clk 0:00:04.4]} 53... a4 {[%clk 0:00:06.3]} 54. Kb4
{[%clk 0:00:02]} 54... Rd1 {[%clk 0:00:06.4]} 0-1

[Event "Early-Titled-Tuesday-Blitz-September-12-2023"]
[Site "Chess.com"]
[Date "2023.09.12"]
[Round "2"]
[White "ProfessorChess101"]
[Black "Hasangatin_Ramil"]
[Result "0-1"]
[WhiteElo "2420"]
[BlackElo "2740"]
[TimeControl "180+1"]
[EndTime "8:18:52 PDT"]
[Termination "Hasangatin_Ramil won by resignation"]

1. d4 {[%clk 0:03:00.9]} 1... d5 {[%clk 0:02:59.5]} 2. c4 {[%clk 0:03:00.8]}
2... c6 {[%clk 0:02:59.8]} 3. cxd5 {[%clk 0:02:59.4]} 3... cxd5 {[%clk
0:02:59.4]} 4. Nc3 {[%clk 0:03:00]} 4... Nf6 {[%clk 0:03:00]} 5. Bf4 {[%clk
0:03:00]} 5... Qb6 {[%clk 0:03:00.4]} 6. e3 {[%clk 0:02:51.9]} 6... Bd7 {[%clk
0:03:00.4]} 7. Qc2 {[%clk 0:02:50.2]} 7... e6 {[%clk 0:02:59.2]} 8. Nf3 {[%clk
0:02:48.4]} 8... Be7 {[%clk 0:02:59.1]} 9. Bd3 {[%clk 0:02:48.1]} 9... O-O
{[%clk 0:02:58.7]} 10. O-O {[%clk 0:02:48.5]} 10... Rc8 {[%clk 0:02:58.7]} 11.
Ne5 {[%clk 0:02:48.1]} 11... Nc6 {[%clk 0:02:51.6]} 12. a3 {[%clk 0:02:36.8]}
12... Be8 {[%clk 0:02:43.7]} 13. Qe2 {[%clk 0:02:32]} 13... Qd8 {[%clk
0:02:42.8]} 14. Rac1 {[%clk 0:02:26.6]} 14... a6 {[%clk 0:02:42.3]} 15. Qf3
{[%clk 0:02:24.9]} 15... Nxe5 {[%clk 0:02:35]} 16. Bxe5 {[%clk 0:02:24]} 16...
Nd7 {[%clk 0:02:34.4]} 17. Bf4 {[%clk 0:02:09.4]} 17... Nb6 {[%clk 0:02:32.9]}
18. Qh3 {[%clk 0:01:56.4]} 18... g6 {[%clk 0:02:31]} 19. Qh6 {[%clk 0:01:10.8]}
19... Bf8 {[%clk 0:02:28.1]} 20. Qh3 {[%clk 0:01:08.9]} 20... Rc6 {[%clk
0:02:27]} 21. Ne2 {[%clk 0:01:06.1]} 21... Rac8 {[%clk 0:02:25.5]} 22. Rxc6
{[%clk 0:01:00.6]} 22... Rxc6 {[%clk 0:02:25.4]} 23. Qf3 {[%clk 0:01:00.5]}
23... Nc4 {[%clk 0:02:20.5]} 24. Bxc4 {[%clk 0:00:54.4]} 24... Rxc4 {[%clk
0:02:20.1]} 25. Be5 {[%clk 0:00:54.4]} 25... Bb5 {[%clk 0:02:14.7]} 26. Nf4
{[%clk 0:00:37.8]} 26... Rc2 {[%clk 0:02:04.2]} 27. Nh5 {[%clk 0:00:35.4]} 27...
f5 {[%clk 0:01:35.5]} 28. Nf6+ {[%clk 0:00:29.4]} 28... Kf7 {[%clk 0:01:34.6]}
29. Rb1 {[%clk 0:00:25.8]} 29... h6 {[%clk 0:01:23.7]} 30. h4 {[%clk 0:00:22.2]}
30... Bg7 {[%clk 0:01:23.3]} 31. Ng4 {[%clk 0:00:22.5]} 31... Be2 {[%clk
0:01:16.9]} 32. Qf4 {[%clk 0:00:15.8]} 32... Bxg4 {[%clk 0:01:14.5]} 33. f3
{[%clk 0:00:16.1]} 33... Bxe5 {[%clk 0:01:06.3]} 34. dxe5 {[%clk 0:00:12.8]}
34... Qxh4 {[%clk 0:00:53.3]} 35. fxg4 {[%clk 0:00:11.7]} 35... Qxg4 {[%clk
0:00:52.4]} 36. Qxg4 {[%clk 0:00:10.5]} 36... fxg4 {[%clk 0:00:53.3]} 37. b4
{[%clk 0:00:09.9]} 37... Re2 {[%clk 0:00:47.2]} 38. Rc1 {[%clk 0:00:07.5]} 38...
g3 {[%clk 0:00:42]} 39. Rc7+ {[%clk 0:00:06.5]} 39... Ke8 {[%clk 0:00:41.6]} 40.
Kf1 {[%clk 0:00:07]} 40... Rxe3 {[%clk 0:00:42]} 41. Rxb7 {[%clk 0:00:06.7]}
41... Rxe5 {[%clk 0:00:41.7]} 42. Rb6 {[%clk 0:00:06]} 42... Kd7 {[%clk
0:00:41.2]} 43. Rxa6 {[%clk 0:00:06.3]} 43... d4 {[%clk 0:00:41.8]} 44. Ra7+
{[%clk 0:00:05.1]} 44... Kc6 {[%clk 0:00:41.6]} 45. Ra8 {[%clk 0:00:05.4]} 45...
Rf5+ {[%clk 0:00:34.7]} 46. Ke2 {[%clk 0:00:05.2]} 46... Rf2+ {[%clk 0:00:34.1]}
47. Kd3 {[%clk 0:00:06.1]} 47... Rxg2 {[%clk 0:00:34.3]} 48. Rc8+ {[%clk
0:00:05]} 48... Kd7 {[%clk 0:00:33.2]} 49. Rc1 {[%clk 0:00:04.1]} 49... e5
{[%clk 0:00:32.4]} 50. Ke4 {[%clk 0:00:04.4]} 50... Re2+ {[%clk 0:00:32.3]} 51.
Kd5 {[%clk 0:00:05.3]} 51... g2 {[%clk 0:00:31.5]} 52. b5 {[%clk 0:00:05.2]}
52... Rf2 {[%clk 0:00:27.8]} 53. b6 {[%clk 0:00:04.6]} 53... Rb2 {[%clk
0:00:23.5]} 54. Rc7+ {[%clk 0:00:02.7]} 54... Kd8 {[%clk 0:00:23.7]} 55. Rh7
{[%clk 0:00:01.9]} 0-1

[Event "Early-Titled-Tuesday-Blitz-September-12-2023"]
[Site "Chess.com"]
[Date "2023.09.12"]
[Round "2"]
[White "Gentlejimmy7"]
[Black "MaxLeto"]
[Result "1-0"]
[WhiteElo "2560"]
[BlackElo "2377"]
[TimeControl "180+1"]
[EndTime "8:18:52 PDT"]
[Termination "Gentlejimmy7 won by resignation"]

1. c4 {[%clk 0:03:00.9]} 1... e5 {[%clk 0:02:34.7]} 2. b3 {[%clk 0:02:58]} 2...
Nf6 {[%clk 0:02:32.1]} 3. Bb2 {[%clk 0:02:58.9]} 3... Nc6 {[%clk 0:02:31]} 4. e3
{[%clk 0:02:58.4]} 4... d5 {[%clk 0:02:25.5]} 5. cxd5 {[%clk 0:02:59.3]} 5...
Nxd5 {[%clk 0:02:26.2]} 6. Nc3 {[%clk 0:02:59.7]} 6... Ndb4 {[%clk 0:02:25.8]}
7. d3 {[%clk 0:02:59.9]} 7... Bf5 {[%clk 0:02:25.6]} 8. e4 {[%clk 0:02:59.9]}
8... Be6 {[%clk 0:02:22.3]} 9. a3 {[%clk 0:02:59.6]} 9... Na6 {[%clk 0:02:22.4]}
10. b4 {[%clk 0:02:59.3]} 10... Nd4 {[%clk 0:02:23]} 11. Rc1 {[%clk 0:02:41.9]}
11... Bb3 {[%clk 0:02:15.1]} 12. Qd2 {[%clk 0:02:41.1]} 12... c5 {[%clk
0:02:13.8]} 13. b5 {[%clk 0:02:40]} 13... Nc7 {[%clk 0:02:13.9]} 14. Nf3 {[%clk
0:02:37.6]} 14... Bd6 {[%clk 0:01:40.4]} 15. Be2 {[%clk 0:02:31.3]} 15... O-O
{[%clk 0:01:33.4]} 16. O-O {[%clk 0:02:31.4]} 16... Re8 {[%clk 0:01:33.4]} 17.
Bd1 {[%clk 0:02:30.1]} 17... Bxd1 {[%clk 0:01:11.2]} 18. Qxd1 {[%clk 0:02:31]}
18... Ncxb5 {[%clk 0:01:10.4]} 19. Nxb5 {[%clk 0:02:30.4]} 19... Nxb5 {[%clk
0:01:11.3]} 20. Qb3 {[%clk 0:02:30.8]} 20... Qd7 {[%clk 0:01:08.8]} 21. a4
{[%clk 0:02:25.9]} 21... Nd4 {[%clk 0:01:08.1]} 22. Bxd4 {[%clk 0:02:26.1]}
22... exd4 {[%clk 0:00:51.3]} 23. Nd2 {[%clk 0:02:18.8]} 23... Rab8 {[%clk
0:00:48.3]} 24. f4 {[%clk 0:02:17]} 24... Rec8 {[%clk 0:00:44.3]} 25. Qd5 {[%clk
0:02:16.8]} 25... Qc6 {[%clk 0:00:38.4]} 26. Qxc6 {[%clk 0:02:12.3]} 26... Rxc6
{[%clk 0:00:39.3]} 27. Rb1 {[%clk 0:02:11.1]} 27... b6 {[%clk 0:00:28.2]} 28.
Nc4 {[%clk 0:02:10.2]} 28... Bc7 {[%clk 0:00:28.1]} 29. g3 {[%clk 0:02:08.9]}
29... a6 {[%clk 0:00:28.5]} 30. Rb3 {[%clk 0:01:55.6]} 30... f6 {[%clk
0:00:13.2]} 31. Rfb1 {[%clk 0:01:55.8]} 31... Kf7 {[%clk 0:00:13.6]} 32. Kf2
{[%clk 0:01:55.6]} 32... h5 {[%clk 0:00:12.9]} 33. Kf3 {[%clk 0:01:55.4]} 33...
g6 {[%clk 0:00:13.5]} 34. Na5 {[%clk 0:01:50.4]} 34... Re6 {[%clk 0:00:11.8]}
35. Nc4 {[%clk 0:01:49.6]} 35... Ke7 {[%clk 0:00:12.2]} 36. R3b2 {[%clk
0:01:35.9]} 36... Kd7 {[%clk 0:00:11.2]} 37. h3 {[%clk 0:01:33.1]} 37... Kc8
{[%clk 0:00:10.2]} 38. g4 {[%clk 0:01:30.3]} 38... hxg4+ {[%clk 0:00:09.7]} 39.
hxg4 {[%clk 0:01:31.2]} 39... Kd7 {[%clk 0:00:09.6]} 40. Rh2 {[%clk 0:01:30]}
40... b5 {[%clk 0:00:08.3]} 41. Rh7+ {[%clk 0:01:20.4]} 41... Kc6 {[%clk
0:00:08.3]} 42. f5 {[%clk 0:01:14.9]} 42... gxf5 {[%clk 0:00:08.1]} 43. gxf5
{[%clk 0:01:15.8]} 43... Ree8 {[%clk 0:00:07.9]} 44. axb5+ {[%clk 0:01:14.9]}
44... axb5 {[%clk 0:00:08.5]} 45. Nd2 {[%clk 0:01:03.7]} 45... Rg8 {[%clk
0:00:09.2]} 46. Rf7 {[%clk 0:00:59.1]} 46... Rg3+ {[%clk 0:00:05.8]} 47. Ke2
{[%clk 0:00:59.4]} 47... Be5 {[%clk 0:00:05.6]} 48. Ra1 {[%clk 0:00:58.6]} 48...
Re3+ {[%clk 0:00:05.5]} 49. Kf2 {[%clk 0:00:59]} 49... Rxd3 {[%clk 0:00:06.1]}
50. Nf3 {[%clk 0:00:54.1]} 50... c4 {[%clk 0:00:05.5]} 51. Ra6+ {[%clk 0:00:52]}
51... Rb6 {[%clk 0:00:04.8]} 52. Nxe5+ {[%clk 0:00:51.6]} 52... fxe5 {[%clk
0:00:02]} 53. Rf6+ {[%clk 0:00:52.2]} 53... Kc5 {[%clk 0:00:02.5]} 54. Raxb6
{[%clk 0:00:51.7]} 54... c3 {[%clk 0:00:02.9]} 55. Rfc6+ {[%clk 0:00:51.2]}
55... Kb4 {[%clk 0:00:03.3]} 56. f6 {[%clk 0:00:51.6]} 56... Re3 {[%clk
0:00:03.2]} 57. f7 {[%clk 0:00:44.4]} 57... Rxe4 {[%clk 0:00:03.2]} 58. Rf6
{[%clk 0:00:45.1]} 58... Rf4+ {[%clk 0:00:04.1]} 59. Rxf4 {[%clk 0:00:44.6]}
59... exf4 {[%clk 0:00:04.6]} 60. f8=Q+ {[%clk 0:00:45.2]} 60... Kc4 {[%clk
0:00:04.6]} 61. Qxf4 {[%clk 0:00:43.6]} 61... b4 {[%clk 0:00:04.5]} 62. Rxb4+
{[%clk 0:00:42.8]} 62... Kxb4 {[%clk 0:00:04.5]} 63. Qxd4+ {[%clk 0:00:43.2]}
63... Kb3 {[%clk 0:00:05.4]} 64. Ke2 {[%clk 0:00:42.8]} 64... c2 {[%clk
0:00:06.3]} 65. Kd2 {[%clk 0:00:41.7]} 65... Ka2 {[%clk 0:00:06.9]} 66. Kxc2
{[%clk 0:00:40.8]} 66... Ka3 {[%clk 0:00:07.6]} 67. Qb6 {[%clk 0:00:36.3]} 67...
Ka4 {[%clk 0:00:07.4]} 68. Kc3 {[%clk 0:00:36.4]} 1-0